bitfinex/quotes_BTCUSD_20241111
["timestamp","ask_amount","ask_price","bid_price","bid_amount"]
[1731343842189,0.14025756,84073.0,84072.0,0.000848]
[1731343843101,0.14025756,84073.0,84072.0,0.00113586]
[1731343843259,0.11725756,84073.0,84072.0,0.00113586]
[1731343844319,0.11725756,84073.0,84072.0,0.000848]
[1731343845371,0.11725756,84073.0,84072.0,0.00613586]
[1731343845605,0.11725756,84073.0,84072.0,0.0263216]
[1731343846017,0.00347314,84087.0,84086.0,0.00028786]
[1731343846241,0.12163675,84087.0,84086.0,0.00528786]
[1731343846597,0.001696,84087.0,84086.0,0.00528786]
[1731343848128,0.001696,84087.0,84086.0,0.01694458]
[1731343848472,0.001696,84087.0,84086.0,0.00528786]
[1731343849318,0.001696,84087.0,84072.0,0.04993048]
[1731343849319,0.12163675,84087.0,84074.0,0.00028786]
[1731343849519,0.11994075,84085.0,84082.0,0.00028786]
[1731343849849,0.00177714,84084.0,84082.0,0.00028786]
[1731343850044,0.11994075,84083.0,84082.0,0.00028786]
[1731343851354,0.11994075,84083.0,84082.0,0.00583416]
[1731343851571,0.11994075,84083.0,84082.0,0.00028786]
[1731343855968,0.11994075,84083.0,84080.0,0.00028786]
[1731343856181,0.00177714,84082.0,84073.0,0.2784238]
[1731343856571,0.001696,84087.0,84085.0,0.00528786]
[1731343856785,0.001696,84087.0,84086.0,0.00528786]
[1731343856967,0.001696,84087.0,84086.0,0.00702456]
[1731343857403,0.12163675,84087.0,84086.0,0.00528786]
[1731343858756,0.12163675,84087.0,84078.0,0.00028786]
[1731343858955,0.12171789,84086.0,84085.0,0.00028786]
[1731343859186,0.12171789,84086.0,84084.0,0.1]
[1731343859477,0.12171789,84086.0,84085.0,0.00028786]
[1731343860115,0.12171789,84086.0,84084.0,0.00028786]
[1731343860339,0.11994075,84085.0,84075.0,0.1]
[1731343860563,0.002,84075.0,84072.0,0.000848]
[1731343860772,0.00177714,84074.0,84073.0,0.1784238]
[1731343860979,0.00177714,84074.0,84072.0,0.000848]
[1731343860980,0.002,84073.0,84072.0,0.000848]
[1731343861347,0.002,84075.0,84072.0,0.000848]
[1731343861551,0.00177714,84074.0,84072.0,0.000848]
[1731343861928,0.11994075,84073.0,84072.0,0.000848]
[1731343862330,0.12465289,84073.0,84072.0,0.000848]
[1731343862501,0.16979125,84073.0,84072.0,0.000848]
[1731343862757,0.24686839,84073.0,84072.0,0.000848]
[1731343862982,0.002,84055.0,84054.0,0.1784238]
[1731343863100,0.12194075,84055.0,84054.0,0.1784238]
[1731343863317,0.12194075,84055.0,84045.0,0.1784238]
[1731343863318,0.002,84053.0,84045.0,0.1784238]
[1731343863518,0.11994075,84046.0,84045.0,0.1784238]
[1731343863960,0.11994075,84046.0,84043.0,0.00028786]
[1731343864184,0.00471214,84060.0,84043.0,0.00028786]
[1731343864185,0.11994075,84044.0,84043.0,0.00028786]
[1731343864389,0.11994075,84044.0,84039.0,0.00028786]
[1731343864561,0.002,84049.0,84039.0,0.00028786]
[1731343864780,0.002,84049.0,84047.0,0.1]
[1731343864988,0.023,84048.0,84036.0,0.000848]
[1731343865187,0.023,84048.0,84038.0,0.1784238]
[1731343865437,0.025,84037.0,84036.0,0.000848]
[1731343865790,0.14494075,84037.0,84036.0,0.000848]
[1731343865993,0.15990604,84037.0,84036.0,0.000848]
[1731343866592,0.14471789,84037.0,84036.0,0.000848]
[1731343866814,0.14671789,84037.0,84036.0,0.000848]
[1731343867943,0.19061834,84037.0,84036.0,0.000848]
[1731343868659,0.18861834,84037.0,84036.0,0.000848]
[1731343868866,0.60711922,84037.0,84036.0,0.000848]
[1731343869093,0.666054,84037.0,84036.0,0.000848]
[1731343869277,0.00471214,84018.0,84017.0,0.02]
[1731343869432,0.03148928,84018.0,84017.0,0.02]
[1731343869842,0.03148928,84018.0,84017.0,0.00822453]
[1731343870026,0.07581708,84018.0,84017.0,0.00822453]
[1731343870232,0.07581708,84018.0,84009.0,0.0181184]
[1731343870233,0.023,83989.0,83988.0,0.001346]
[1731343870496,0.15143003,83989.0,83988.0,0.001346]
[1731343870732,0.14943003,83989.0,83988.0,0.001346]
[1731343871567,0.15143003,83989.0,83988.0,0.001346]
[1731343871780,0.14943003,83989.0,83988.0,0.001346]
[1731343872549,0.15143003,83989.0,83988.0,0.001346]
[1731343872964,0.14671789,83989.0,83988.0,0.001346]
[1731343873131,0.15143003,83989.0,83988.0,0.001346]
[1731343873474,0.16657303,83989.0,83988.0,0.001346]
[1731343873679,0.21068614,83989.0,83988.0,0.001346]
[1731343875848,0.19354314,83989.0,83988.0,0.001346]
[1731343876052,0.165831,83989.0,83988.0,0.001346]
[1731343876282,0.11994075,83989.0,83988.0,0.00163386]
[1731343876450,0.11994075,83989.0,83988.0,0.00663386]
[1731343877927,0.00177714,84009.0,83998.0,0.005]
[1731343878160,0.11994075,84008.0,84007.0,0.00528786]
[1731343878375,0.11994075,84008.0,84007.0,0.00028786]
[1731343878487,0.11994075,84008.0,83991.0,0.005]
[1731343878688,0.11994075,84000.0,83999.0,0.1]
[1731343879646,0.11994075,84000.0,83988.0,0.001346]
[1731343879647,0.023,83999.0,83988.0,0.001346]
[1731343880000,0.14294075,83989.0,83988.0,0.001346]
[1731343880134,0.14471789,83989.0,83988.0,0.001346]
[1731343880336,0.14671789,83989.0,83988.0,0.001346]
[1731343881581,0.14471789,83989.0,83988.0,0.001346]
[1731343881755,0.11994075,83989.0,83988.0,0.02669308]
[1731343881977,0.11994075,83989.0,83988.0,0.001346]
[1731343882828,0.1784238,84009.0,83996.0,0.005]
[1731343883037,0.1784238,84000.0,83996.0,0.005]
[1731343883253,0.11994075,83999.0,83998.0,0.105]
[1731343883440,0.11994075,83999.0,83998.0,0.1]
[1731343884007,0.13193483,83999.0,83998.0,0.1]
[1731343884227,0.11994075,83999.0,83997.0,0.005]
[1731343884413,0.00177714,83998.0,83997.0,0.005]
[1731343884617,0.14471789,83998.0,83997.0,0.005]
[1731343884827,0.14471789,83998.0,83988.0,0.001346]
[1731343884828,0.023,83997.0,83988.0,0.001346]
[1731343885035,0.13618968,83998.0,83988.0,0.001346]
[1731343885036,0.023,83989.0,83988.0,0.001346]
[1731343885556,0.00177714,83996.0,83988.0,0.001346]
[1731343885557,0.023,83995.0,83988.0,0.001346]
[1731343885725,0.023,83993.0,83988.0,0.001346]
[1731343885964,0.00177714,83994.0,83988.0,0.001346]
[1731343885965,0.023,83991.0,83989.0,0.1784238]
[1731343886115,0.023,83991.0,83990.0,0.1]
[1731343886515,0.04361085,83998.0,83990.0,0.1]
[1731343886691,0.005,83993.0,83988.0,0.001346]
[1731343887122,0.002,83989.0,83988.0,0.001346]
[1731343887492,0.11994075,83989.0,83988.0,0.001346]
[1731343887876,0.13263483,83989.0,83988.0,0.001346]
[1731343888082,0.13441197,83989.0,83988.0,0.001346]
[1731343888307,0.14141197,83989.0,83988.0,0.001346]
[1731343888729,0.002,83979.0,83978.0,0.1784238]
[1731343888931,0.12371789,83979.0,83978.0,0.1784238]
[1731343889162,0.12171789,83979.0,83969.0,0.1884238]
[1731343889453,0.11994075,83970.0,83969.0,0.2884238]
[1731343889863,0.11994075,83970.0,83969.0,0.11]
[1731343890529,0.11994075,83970.0,83969.0,0.01]
[1731343894134,0.13193483,83970.0,83969.0,0.01]
[1731343894342,0.11994075,83970.0,83969.0,0.01]
[1731343894558,0.11994075,83970.0,83969.0,0.015]
[1731343894773,0.11994075,83970.0,83969.0,0.01]
[1731343896015,0.16508946,83970.0,83969.0,0.01]
[1731343898075,0.16508946,83970.0,83969.0,0.010849]
[1731343898769,0.11994075,83970.0,83969.0,0.015849]
[1731343899188,0.13193483,83970.0,83969.0,0.010849]
[1731343899388,0.13371197,83970.0,83969.0,0.010849]
[1731343899629,0.12171789,83970.0,83969.0,0.010849]
[1731343900010,0.16356237,83970.0,83969.0,0.010849]
[1731343900844,0.16533951,83970.0,83969.0,0.010849]
[1731343901807,0.16356237,83970.0,83969.0,0.010849]
[1731343902448,0.16356237,83970.0,83969.0,0.015849]
[1731343902681,0.11994075,83970.0,83969.0,0.015849]
[1731343904054,0.001698,83987.0,83981.0,0.005]
[1731343904230,0.001698,83987.0,83979.0,0.1]
[1731343904231,0.12171789,83986.0,83985.0,0.005]
[1731343904525,0.001698,83987.0,83986.0,0.0931]
[1731343904695,0.001698,83987.0,83986.0,0.2357]
[1731343904918,0.12002118,83987.0,83986.0,0.2357]
[1731343905101,0.12002118,83987.0,83986.0,0.1881]
[1731343905304,8.043e-05,83987.0,83986.0,0.1881]
[1731343905751,8.043e-05,83987.0,83986.0,0.0881]
[1731343906403,8.043e-05,83987.0,83986.0,0.0931]
[1731343906833,0.12002118,83987.0,83986.0,0.0881]
[1731343907778,0.12002118,83987.0,83986.0,0.086833]
[1731343908394,0.12002118,83987.0,83986.0,0.005]
[1731343909413,0.12002118,83987.0,83976.0,0.04477694]
[1731343909656,0.12171789,83986.0,83984.0,0.005]
[1731343910283,8.043e-05,83987.0,83985.0,0.03528242]
[1731343910490,8.043e-05,83987.0,83986.0,0.1884238]
[1731343910691,8.043e-05,83987.0,83986.0,0.11881121]
[1731343910891,8.043e-05,83987.0,83986.0,0.26411121]
[1731343911101,8.043e-05,83987.0,83986.0,0.26496021]
[1731343911306,8.043e-05,83987.0,83986.0,0.241449]
[1731343911979,8.043e-05,83987.0,83986.0,0.26495985]
[1731343912424,0.001698,84000.0,83999.0,0.52678874]
[1731343912641,0.001698,84000.0,83999.0,0.60298874]
[1731343912876,0.001698,84000.0,83999.0,0.1912]
[1731343913093,0.001698,84000.0,83999.0,0.2402]
[1731343913957,0.001698,84000.0,83999.0,0.65198874]
[1731343914399,0.005,84039.0,83999.0,0.65198874]
[1731343914400,0.1784238,84032.0,84025.0,0.01]
[1731343914601,0.1784238,84032.0,84025.0,0.0865]
[1731343914815,0.1784238,84050.0,84025.0,0.2444]
[1731343915020,0.00177714,84049.0,84025.0,0.2444]
[1731343915825,0.1784238,84035.0,84025.0,0.2344]
[1731343916049,0.00177714,84034.0,84025.0,0.0865]
[1731343916194,0.00177714,84034.0,84019.0,0.005]
[1731343916195,0.17475806,84026.0,84019.0,0.005]
[1731343916401,0.12171789,84025.0,84019.0,0.005]
[1731343916854,0.12171789,84025.0,84010.0,0.1834238]
[1731343917008,0.12171789,84025.0,84019.0,0.005]
[1731343917413,0.12171789,84025.0,84014.0,0.005]
[1731343917414,0.11994075,84022.0,84014.0,0.005]
[1731343917620,0.01963066,84025.0,84006.0,0.005]
[1731343917621,0.11994075,84015.0,84006.0,0.005]
[1731343917821,0.11994075,84014.0,84009.0,0.1784238]
[1731343918055,0.12171789,84014.0,84009.0,0.1784238]
[1731343918279,0.12171789,84014.0,84006.0,0.005]
[1731343920181,0.12171789,84014.0,83990.0,0.12607247]
[1731343920182,0.11994075,84007.0,83990.0,0.04957247]
[1731343920400,0.11994075,84007.0,84001.0,0.1784238]
[1731343920401,0.11994075,84002.0,84001.0,0.1784238]
[1731343920608,0.11994075,84002.0,83994.0,0.005]
[1731343920820,0.00177714,84001.0,83994.0,0.005]
[1731343921031,0.11994075,83995.0,83986.0,0.000849]
[1731343921257,0.00177714,83994.0,83992.0,0.1784238]
[1731343921447,0.005,84005.0,83992.0,0.1784238]
[1731343921448,0.11994075,83993.0,83992.0,0.005]
[1731343922466,0.11994075,83993.0,83986.0,0.000849]
[1731343922691,0.12171789,83992.0,83986.0,0.000849]
[1731343922954,0.11994075,83989.0,83986.0,0.000849]
[1731343923149,0.00177714,83988.0,83986.0,0.100849]
[1731343923308,0.11994075,83987.0,83986.0,0.100849]
[1731343923930,0.12194075,83987.0,83986.0,0.000849]
[1731343924130,0.11994075,83987.0,83986.0,0.000849]
[1731343924454,0.11702803,83987.0,83986.0,0.000849]
[1731343924844,0.11902803,83987.0,83986.0,0.000849]
[1731343925213,0.13643083,83987.0,83986.0,0.000849]
[1731343925511,0.12402803,83987.0,83986.0,0.000849]
[1731343928703,0.12402803,83987.0,83986.0,6.632e-05]
[1731343930211,0.13642772,83987.0,83986.0,6.632e-05]
[1731343931504,0.13142772,83987.0,83986.0,6.632e-05]
[1731343931733,0.13642772,83987.0,83986.0,6.632e-05]
[1731343931938,0.19124937,83987.0,83986.0,6.632e-05]
[1731343932413,0.12942772,83987.0,83986.0,6.632e-05]
[1731343933174,0.11702803,83987.0,83986.0,6.632e-05]
[1731343933481,0.11525089,83987.0,83986.0,6.632e-05]
[1731343933713,0.11525089,83987.0,83986.0,0.00506632]
[1731343933923,0.001698,83995.0,83994.0,0.005]
[1731343934489,0.001698,83995.0,83994.0,0.00839082]
[1731343934914,0.001698,83995.0,83994.0,0.02077174]
[1731343935129,0.001698,83995.0,83994.0,0.01839082]
[1731343935899,0.001698,83995.0,83994.0,0.00839082]
[1731343936601,0.001698,83995.0,83994.0,0.01839082]
[1731343937920,0.17689894,84017.0,84016.0,0.005]
[1731343938130,0.29683969,84017.0,84016.0,0.005]
[1731343938441,0.11994075,84017.0,84016.0,0.005]
[1731343939220,0.13210443,84017.0,83998.0,0.005]
[1731343939424,0.01216368,84017.0,84009.0,0.1]
[1731343939570,0.002,84013.0,84009.0,0.1]
[1731343939804,0.002,84013.0,84010.0,0.00331642]
[1731343940174,0.002,84017.0,84010.0,0.00331642]
[1731343940558,0.002,84017.0,83999.0,0.1]
[1731343940756,0.04893237,84019.0,84007.0,0.1784238]
[1731343940973,0.11994075,84012.0,84008.0,0.2784238]
[1731343941147,0.11994075,84012.0,84008.0,0.10339945]
[1731343941758,0.11994075,84009.0,84008.0,0.00339945]
[1731343941991,0.005,84006.0,83989.0,0.1784238]
[1731343942218,0.002,84007.0,83989.0,0.1784238]
[1731343942219,0.005,83991.0,83989.0,0.1784238]
[1731343942642,0.002,83993.0,83986.0,6.632e-05]
[1731343942643,0.005,83988.0,83986.0,6.632e-05]
[1731343943275,0.12494075,83988.0,83986.0,6.632e-05]
[1731343944346,0.11994075,83988.0,83986.0,6.632e-05]
[1731343944561,0.16950407,83988.0,83986.0,6.632e-05]
[1731343945405,0.17150407,83988.0,83986.0,6.632e-05]
[1731343945613,0.007,83987.0,83986.0,6.632e-05]
[1731343945823,0.12494075,83987.0,83986.0,6.632e-05]
[1731343946215,0.11994075,83987.0,83986.0,6.632e-05]
[1731343946383,0.12494075,83987.0,83986.0,6.632e-05]
[1731343947252,0.12644075,83987.0,83986.0,6.632e-05]
[1731343947451,0.12844075,83987.0,83986.0,6.632e-05]
[1731343947828,0.12644075,83987.0,83986.0,6.632e-05]
[1731343948202,0.12144075,83987.0,83986.0,6.632e-05]
[1731343948812,0.11222068,83987.0,83986.0,6.632e-05]
[1731343949018,0.11922068,83987.0,83986.0,6.632e-05]
[1731343949536,0.11722068,83987.0,83986.0,6.632e-05]
[1731343950330,0.11222068,83987.0,83986.0,6.632e-05]
[1731343950732,0.11095668,83987.0,83986.0,6.632e-05]
[1731343952924,0.11095668,83987.0,83986.0,0.00506632]
[1731343953311,0.0015,83987.0,83986.0,0.00506632]
[1731343954248,0.0015,83987.0,83986.0,0.01506632]
[1731343958378,0.1749238,84003.0,84002.0,0.005]
[1731343958612,0.29486455,84003.0,83989.0,0.005]
[1731343958812,0.59221254,84012.0,83986.0,6.632e-05]
[1731343958813,0.002,83989.0,83986.0,6.632e-05]
[1731343959038,0.11994075,83987.0,83986.0,6.632e-05]
[1731343960089,0.16325233,83987.0,83970.0,0.005]
[1731343960290,0.11994075,83977.0,83976.0,0.2784238]
[1731343960505,0.11994075,83977.0,83976.0,0.1]
[1731343960908,0.12194075,83977.0,83976.0,0.1]
[1731343961107,0.11994075,83977.0,83976.0,0.1]
[1731343961341,0.11994075,83977.0,83962.0,0.1442728]
[1731343961885,0.1784238,83976.0,83954.0,0.00738204]
[1731343962091,0.11994075,83966.0,83959.0,0.1784238]
[1731343962346,0.11994075,83966.0,83954.0,0.005]
[1731343962712,0.11994075,83966.0,83960.0,0.1]
[1731343963802,0.005,83960.0,83947.0,0.1784238]
[1731343964006,0.11994075,83959.0,83947.0,0.1784238]
[1731343964210,0.12194075,83959.0,83947.0,0.1784238]
[1731343964553,0.12694075,83959.0,83933.0,0.00022894]
[1731343964748,0.13194075,83959.0,83941.0,0.1784238]
[1731343964960,0.14433423,83959.0,83941.0,0.1784238]
[1731343965568,0.55812297,83959.0,83941.0,0.1784238]
[1731343967057,0.002,83942.0,83941.0,0.1784238]
[1731343967264,0.007,83940.0,83932.0,0.1784238]
[1731343967509,0.15291483,83940.0,83932.0,0.1784238]
[1731343967677,0.12994075,83940.0,83932.0,0.1784238]
[1731343967890,0.12994075,83940.0,83926.0,0.27810926]
[1731343968055,0.12494075,83940.0,83926.0,0.2740186]
[1731343968253,0.002,83929.0,83926.0,0.2740186]
[1731343968455,0.005,83931.0,83926.0,0.2740186]
[1731343968456,0.007,83931.0,83928.0,0.1784238]
[1731343968682,0.007,83931.0,83926.0,0.2740186]
[1731343968864,0.005,83931.0,83926.0,0.2740186]
[1731343969118,0.11994075,83927.0,83926.0,0.2740186]
[1731343970853,0.11994075,83927.0,83926.0,0.3740186]
[1731343972310,0.11994075,83927.0,83926.0,0.3748666]
[1731343972716,0.11994075,83927.0,83926.0,0.2748666]
[1731343973157,0.16805842,83927.0,83926.0,0.2748666]
[1731343973366,0.16305842,83927.0,83926.0,0.2748666]
[1731343974836,0.17986426,83927.0,83926.0,0.2748666]
[1731343975057,0.16305842,83927.0,83926.0,0.2748666]
[1731343979701,0.16505842,83927.0,83926.0,0.2748666]
[1731343980336,0.16305842,83927.0,83926.0,0.2748666]
[1731343981658,0.16305842,83927.0,83898.0,0.00022894]
[1731343981659,0.01,83899.0,83898.0,0.00022894]
[1731343981885,0.01,83899.0,83867.0,0.04771687]
[1731343981886,0.005,83887.0,83882.0,0.1784238]
[1731343982097,0.41178874,83883.0,83882.0,0.1784238]
[1731343982297,0.41678874,83883.0,83873.0,0.1784238]
[1731343982520,0.41678874,83883.0,83867.0,0.00161687]
[1731343982521,0.01,83870.0,83867.0,0.00161687]
[1731343982724,0.41678874,83868.0,83867.0,0.00161687]
[1731343983208,0.41178874,83868.0,83867.0,0.00161687]
[1731343983765,0.41678874,83868.0,83867.0,0.00161687]
[1731343984015,0.41878874,83868.0,83867.0,0.00161687]
[1731343984264,0.42178874,83868.0,83867.0,0.00161687]
[1731343984976,0.63093175,83868.0,83867.0,0.00161687]
[1731343986237,0.01,83860.0,83859.0,0.03229513]
[1731343986376,0.12994075,83860.0,83859.0,0.03229513]
[1731343986623,0.12494075,83860.0,83859.0,0.03229513]
[1731343986829,0.12994075,83860.0,83859.0,0.03229513]
[1731343987046,0.012,83857.0,83842.0,0.001348]
[1731343987244,0.007,83843.0,83842.0,0.001348]
[1731343987455,0.54372949,83843.0,83842.0,0.001348]
[1731343987732,0.54172949,83843.0,83842.0,0.001348]
[1731343987889,0.59610244,83843.0,83842.0,0.001348]
[1731343988100,0.59610244,83843.0,83821.0,0.00022895]
[1731343988101,0.005,83829.0,83825.0,0.1784238]
[1731343988303,0.39865174,83825.0,83821.0,0.00022895]
[1731343988507,0.04036517,83824.0,83808.0,0.1784238]
[1731343988666,0.04536517,83824.0,83801.0,0.005]
[1731343988869,0.005,83823.0,83802.0,0.005]
[1731343989169,0.30336455,83823.0,83800.0,0.00315227]
[1731343989369,0.13734044,83823.0,83801.0,0.1784238]
[1731343989582,0.56689974,83823.0,83801.0,0.1784238]
[1731343989981,0.56889974,83823.0,83802.0,0.1784238]
[1731343991222,0.11994075,83823.0,83807.0,0.005]
[1731343991438,0.12494075,83823.0,83814.0,0.005]
[1731343991892,0.11994075,83823.0,83814.0,0.005]
[1731343992039,0.12494075,83823.0,83814.0,0.005]
[1731343992243,0.16508344,83823.0,83814.0,0.005]
[1731343992610,0.16508344,83823.0,83815.0,0.005]
[1731343992857,0.16508344,83823.0,83816.0,0.005]
[1731343993685,0.16508344,83823.0,83810.0,0.005]
[1731343993894,0.17208344,83823.0,83802.0,0.005]
[1731343994121,0.41178874,83799.0,83798.0,0.03496808]
[1731343994309,0.53372949,83799.0,83798.0,0.03496808]
[1731343994519,0.1738137,83799.0,83798.0,0.03496808]
[1731343994663,0.11994075,83799.0,83798.0,0.03496808]
[1731343995155,0.11994075,83799.0,83798.0,0.03996808]
[1731343996031,0.11970215,83799.0,83798.0,0.03496808]
[1731343996260,0.11970215,83799.0,83798.0,0.03996808]
[1731343997321,0.11970215,83799.0,83798.0,0.0691912]
[1731343997521,0.03,83800.0,83799.0,0.105]
[1731343997674,0.03,83800.0,83799.0,0.10954999]
[1731343997881,0.14994075,83800.0,83799.0,0.09954999]
[1731343998419,0.14994075,83800.0,83799.0,0.09854999]
[1731343999885,0.03,83800.0,83799.0,0.08921999]
[1731344000368,0.03,83800.0,83799.0,0.12344311]
[1731344000593,0.03,83800.0,83799.0,0.09421999]
[1731344001215,0.1784238,83833.0,83809.0,0.005]
[1731344001448,0.1784238,83813.0,83809.0,0.005]
[1731344001640,0.11994075,83823.0,83808.0,0.005]
[1731344001641,0.11994075,83823.0,83816.0,0.005]
[1731344001888,0.1784238,83833.0,83820.0,0.005]
[1731344002097,0.1784238,83824.0,83821.0,0.005]
[1731344002292,0.11994075,83832.0,83821.0,0.005]
[1731344002851,0.11994075,83832.0,83821.0,0.01]
[1731344003058,0.11994075,83832.0,83821.0,0.005]
[1731344003260,0.11994075,83832.0,83817.0,0.0825]
[1731344003851,0.11994075,83832.0,83821.0,0.1]
[1731344004284,0.11994075,83832.0,83826.0,0.1]
[1731344005052,0.10941047,83832.0,83826.0,0.1]
[1731344005528,0.10941047,83832.0,83824.0,0.005]
[1731344006071,0.10941047,83832.0,83821.0,0.01]
[1731344007223,0.10941047,83832.0,83822.0,0.005]
[1731344007447,0.1784238,83842.0,83826.0,0.005]
[1731344007771,0.1784238,83833.0,83827.0,0.0497]
[1731344007965,0.11994075,83841.0,83833.0,0.005]
[1731344008220,0.5,83850.0,83841.0,0.0754]
[1731344008394,0.5,83850.0,83849.0,0.01]
[1731344008936,0.5,83850.0,83847.0,0.1]
[1731344009548,0.11994075,83849.0,83845.0,0.0497]
[1731344010046,0.49907246,83850.0,83849.0,0.005]
[1731344010248,0.49907246,83850.0,83849.0,0.01]
[1731344011317,0.49907246,83850.0,83849.0,0.005]
[1731344011523,0.49907246,83850.0,83849.0,0.1884238]
[1731344011749,0.49907246,83850.0,83849.0,0.11]
[1731344012787,0.49907246,83850.0,83849.0,0.01]
[1731344013402,0.49907246,83850.0,83849.0,0.52178874]
[1731344013751,0.49907246,83850.0,83849.0,0.52171958]
[1731344014202,0.49907246,83850.0,83849.0,0.10993084]
[1731344014649,0.44907246,83850.0,83849.0,0.65260462]
[1731344014914,0.44907246,83850.0,83849.0,0.18823084]
[1731344015100,0.44907246,83850.0,83849.0,0.22623084]
[1731344015304,0.44907246,83850.0,83849.0,0.1783]
[1731344015435,0.44907246,83850.0,83849.0,0.18823084]
[1731344015781,0.44907246,83850.0,83849.0,0.08823084]
[1731344019130,0.44907246,83850.0,83849.0,0.18823084]
[1731344019733,0.44907246,83850.0,83849.0,0.18323084]
[1731344019941,0.44907246,83850.0,83849.0,0.18823084]
[1731344020154,0.44907246,83850.0,83849.0,0.19023084]
[1731344020711,0.44907246,83850.0,83849.0,0.09023084]
[1731344021113,0.44907246,83850.0,83849.0,0.08823084]
[1731344021695,0.44907246,83850.0,83849.0,0.09261577]
[1731344021899,0.44907246,83850.0,83849.0,0.09023084]
[1731344022205,0.44907246,83850.0,83849.0,0.31255641]
[1731344022481,0.45077246,83850.0,83849.0,0.31017159]
[1731344022659,0.1784238,83877.0,83876.0,0.00993084]
[1731344023170,0.11994075,83877.0,83871.0,0.1]
[1731344023382,0.11994075,83876.0,83871.0,0.1]
[1731344023607,0.11994075,83886.0,83875.0,0.1]
[1731344023830,0.11994075,83886.0,83876.0,0.00493084]
[1731344024051,0.11994075,83886.0,83884.0,0.1]
[1731344024286,0.11994075,83886.0,83876.0,0.00493084]
[1731344024734,0.11494075,83886.0,83876.0,0.00493084]
[1731344024949,0.11494075,83886.0,83875.0,0.105]
[1731344025176,0.11494075,83886.0,83878.0,0.1]
[1731344025595,0.1784238,83903.0,83878.0,0.10493084]
[1731344025792,0.1784238,83894.0,83878.0,0.10493084]
[1731344025982,0.11994075,83893.0,83884.0,0.00493084]
[1731344026179,0.11994075,83893.0,83881.0,0.00493084]
[1731344026721,0.11994075,83893.0,83887.0,0.1]
[1731344026922,0.11994075,83893.0,83881.0,0.00493084]
[1731344027586,0.04467316,83912.0,83888.0,0.1]
[1731344027790,0.1784238,83902.0,83888.0,0.1]
[1731344028038,0.11994075,83901.0,83894.0,0.1]
[1731344028166,0.11939867,83901.0,83894.0,0.1]
[1731344028367,0.1784238,83910.0,83894.0,0.1]
[1731344028619,0.1784238,83908.0,83894.0,0.1]
[1731344028890,0.20264075,83895.0,83894.0,0.1]
[1731344029078,0.20264075,83895.0,83883.0,0.1]
[1731344029079,0.11994075,83895.0,83883.0,0.1]
[1731344031129,0.005,83892.0,83883.0,0.1]
[1731344031385,0.11994075,83891.0,83883.0,0.1]
[1731344031914,0.11994075,83891.0,83883.0,0.0962]
[1731344032131,0.11994075,83891.0,83873.0,0.13916257]
[1731344032802,0.1784238,83890.0,83873.0,0.13916257]
[1731344033019,0.11994075,83889.0,83868.0,0.0625]
[1731344033234,0.00238413,83888.0,83873.0,0.1784238]
[1731344033460,0.11994075,83887.0,83873.0,0.1784238]
[1731344033655,0.11994075,83887.0,83868.0,0.0625]
[1731344033656,0.005,83884.0,83868.0,0.0625]
[1731344033883,0.12232488,83883.0,83873.0,0.2784238]
[1731344034083,0.12232488,83883.0,83873.0,0.1]
[1731344034334,0.12232488,83883.0,83860.0,1.73]
[1731344034335,0.005,83881.0,83872.0,0.298]
[1731344034546,0.12232488,83880.0,83873.0,0.1784238]
[1731344034762,0.12232488,83880.0,83875.0,0.1784238]
[1731344034922,0.11994075,83880.0,83873.0,0.00238432]
[1731344035126,0.033,83873.0,83872.0,0.298]
[1731344035322,0.15294075,83873.0,83872.0,0.298]
[1731344037705,0.11994075,83873.0,83872.0,0.298]
[1731344037911,0.11994075,83873.0,83872.0,0.398]
[1731344039622,0.005,83898.0,83873.0,0.1]
[1731344039863,0.1784238,83893.0,83873.0,0.2784238]
[1731344040081,0.1784238,83893.0,83872.0,0.3785]
[1731344040082,0.005,83906.0,83880.0,0.002]
[1731344040280,0.1784238,83903.0,83881.0,0.00238373]
[1731344040498,0.1784238,83903.0,83893.0,0.002]
[1731344040711,0.1784238,83903.0,83888.0,0.03665657]
[1731344040933,0.00146954,83895.0,83888.0,0.03665657]
[1731344041155,0.00146954,83895.0,83891.0,0.102]
[1731344041381,0.00146954,83895.0,83893.0,0.1]
[1731344041596,0.00146954,83895.0,83894.0,0.2039307]
[1731344041823,0.00146954,83895.0,83894.0,0.2019307]
[1731344042044,0.00146954,83895.0,83894.0,0.1811]
[1731344042291,0.00146954,83895.0,83894.0,0.24820908]
[1731344042503,0.1784238,83921.0,83895.0,0.1]
[1731344042714,0.1784238,83929.0,83925.0,0.002]
[1731344042933,0.000676,83934.0,83926.0,0.20241339]
[1731344042934,0.1784238,83928.0,83926.0,0.20241339]
[1731344043137,0.000676,83934.0,83926.0,0.2000307]
[1731344043352,0.001298,83927.0,83926.0,0.2000307]
[1731344044235,0.001298,83927.0,83926.0,0.1792]
[1731344044675,0.001298,83927.0,83926.0,0.2000307]
[1731344044890,0.001298,83927.0,83926.0,0.24416025]
[1731344045970,0.00095859,83927.0,83926.0,0.24416025]
[1731344046636,0.12089934,83927.0,83926.0,0.04412955]
[1731344046874,0.12089934,83927.0,83916.0,0.1784238]
[1731344047062,0.12089934,83927.0,83925.0,0.04410306]
[1731344047270,0.12089934,83927.0,83916.0,0.1784238]
[1731344047936,0.11994075,83926.0,83916.0,0.04499934]
[1731344048157,0.11994075,83926.0,83911.0,0.0002]
[1731344048158,0.005,83916.0,83911.0,0.0002]
[1731344048374,0.1784238,83926.0,83911.0,0.0002]
[1731344048375,0.005,83912.0,83911.0,0.0002]
[1731344048595,0.005,83916.0,83911.0,0.0002]
[1731344048971,0.005,83926.0,83911.0,0.0002]
[1731344049136,0.00095859,83927.0,83911.0,0.0002]
[1731344049137,0.02170026,83925.0,83911.0,0.0002]
[1731344049338,0.00095859,83927.0,83911.0,0.0002]
[1731344049339,0.00095859,83927.0,83911.0,0.0045831]
[1731344049539,0.00095859,83927.0,83911.0,0.0022]
[1731344050173,0.00077296,83927.0,83911.0,0.04604256]
[1731344050386,0.00077296,83927.0,83911.0,0.0022]
[1731344050758,0.00077296,83927.0,83915.0,0.1]
[1731344051060,0.00077296,83927.0,83919.0,0.002]
[1731344051282,0.00077296,83927.0,83920.0,0.00238269]
[1731344051616,0.00077296,83927.0,83920.0,0.00899304]